Cogmind - Beta 13 @@@ ROGUE MODE // 2024.02.28 @ 18:23:51 Player: ktur Result: Destroyed by J2-EBH(R) with Subdweller Machine Gun Performance ------------- Evolutions (0) 0 Regions Visited (2) 400 Robots Destroyed (13) 65 Value Destroyed (361) 361 Prototype IDs (11) 220 Alien Tech Used (0) 0 Bonus (0) 0 TOTAL SCORE: 1046 Bonus ------- None Cogmind --------- Core Integrity 0/250 Matter 300/300 Energy 172/250 System Corruption 4% Temperature Warm (102) Movement Core (550) Ox10 Location -10/Subcaves Parts ------- > --- POWER (1) -------- Ion Engine > --- PROPULSION (2) --- (None) > --- UTILITY (2) ------ Large Storage Unit Seismic Detector > --- WEAPON (2) ------- Spread Laser Spread Laser > --- INVENTORY (15) --- Light Ion Engine Compact Wheel Improved Flight Unit Improved Flight Unit Improved Flight Unit Improved Flight Unit Heat Sink Structural Scanner Light Armor Plating Rainbow Chip Spread Laser Spread Laser Assault Rifle Subdweller Shrapnel Launcher Flail Peak State ------------ > --- POWER ------------ Ion Engine > --- PROPULSION ------- Light Treads Light Treads > --- UTILITY ---------- Large Storage Unit Seismic Detector > --- WEAPON ----------- Spread Laser Flail > --- INVENTORY -------- Light Ion Engine Compact Wheel Improved Flight Unit Improved Flight Unit Improved Flight Unit Improved Flight Unit Heat Sink Structural Scanner Light Armor Plating Light Armor Plating Rainbow Chip Spread Laser Spread Laser Spread Laser Assault Rifle [Rating: 12] Favorites ----------- Power Ion Engine Engine Ion Engine Propulsion Light Treads Treads Light Treads Flight Unit Improved Flight Unit Utility Seismic Detector Device Seismic Detector Storage Large Storage Unit Weapon Spread Laser Energy Gun Spread Laser Ballistic Gun Assault Rifle Impact Weapon Flail Build | -11 -10 -10 ------- Run | Yrd Mat Sub Slots Evolved . | . . . Power . | . . . Propulsion . | . . . Utility . | . . . Weapon . | . . . Parts Attached 27 | 7 15 5 Power 2 | 1 1 . Engine 2 | 1 1 . Core . | . . . Reactor . | . . . Propulsion 4 | 2 2 . Treads 3 | 2 1 . Leg . | . . . Wheel . | . . . Hover . | . . . Flight 1 | . 1 . Utility 11 | 2 7 2 Device 9 | 1 6 2 Storage 2 | 1 1 . Processor . | . . . Hackware . | . . . Protection . | . . . Artifact . | . . . Weapon 10 | 2 5 3 Energy Gun 5 | 1 3 1 Energy Cannon . | . . . Ballistic Gun 3 | 1 1 1 Ballistic Cannon . | . . . Launcher . | . . . Special Weapon . | . . . Impact Weapon 2 | . 1 1 Slashing Weapon . | . . . Piercing Weapon . | . . . Special Melee Weapon . | . . . Unidentified Prototypes 1 | . 1 . Parts Lost 2 | . . 2 Power . | . . . Propulsion 2 | . . 2 Utility . | . . . Weapon . | . . . Highest Loss Streak 2 | . . 2 To Critical Strikes . | . . . Average Slot Usage (%) 99 | . 99 99 Engine 14 | . 14 14 Treads 27 | . 27 27 Device 14 | . 14 14 Storage 14 | . 14 14 Energy Gun 17 | . 16 18 Ballistic Gun 6 | . 10 1 Impact Weapon 4 | . 1 7 Naked Turns . | . . . Heaviest Build 32 | 15 32 32 Greatest Support 40 | 40 40 40 Greatest Overweight (x) 1 | . 1 . Average Overweight (x) . | . . . Largest Inventory Capacity 15 | 8 15 15 Average Capacity 13 | 6 12 15 Most Carried 15 | 4 15 15 Average Carried 12 | 1 10 14 Final Capacity 15 | 8 15 15 Final Carried 15 | 4 15 15 Class Distribution -------------------- 100% | Mutant Dominant Class ---------------- Mutant | -10/Materials Mutant | -10/Subcaves Resources | -11 -10 -10 ----------- Run | Yrd Mat Sub Matter Collected 546 | 205 273 68 Remotely . | . . . Salvage Created 351 | 13 262 76 Parts 25 | 2 16 7 Haulers Intercepted . | . . . Recyclers Shooed . | . . . Parts Field Recycled . | . . . Retrieved Matter . | . . . Parts Self-Destructed 3 | . . 3 Prevented . | . . . Kills | -11 -10 -10 ------- Run | Yrd Mat Sub Combat Hostiles Destroyed 8 | . 5 3 Guns 8 | . 5 3 Classes Destroyed 6 | 1 4 1 Worker 1 | . 1 . Builder 1 | . 1 . Tunneler 1 | 1 . . Watcher 2 | . 2 . Grunt 5 | . 5 . Subdweller 3 | . . 3 Best Kill Streak 2 | 1 2 2 Combat Bots Only 2 | . 2 2 Max Kills in Single Turn 1 | 1 1 1 Gunslinging . | . . . Exploded . | . . . Melee . | . . . Uniques/NPCs Destroyed . | . . . Combat | -11 -10 -10 -------- Run | Yrd Mat Sub Hostile Shots Fired 51 | . 28 23 Missed 9 | . 6 3 Damage Taken 808 | . 319 489 Core 251 | . 97 154 Absorbed by Shields . | . . . Core Remaining (%) 100 | 100 . . Volleys Fired 46 | 1 24 21 Largest 2 | 2 2 2 Hottest 130 | 70 130 130 Shots Fired 92 | 2 48 42 Gun 92 | 2 48 42 Cannon . | . . . Launcher . | . . . Special . | . . . Kinetic 15 | 1 13 1 Thermal 77 | 1 35 41 Explosive . | . . . Electromagnetic . | . . . Robot Hit Streak 17 | 1 12 17 Robot Miss Streak 3 | 1 3 3 Penetration Max . | . . . Secondary Targets . | . . . Shots Hit Robots 79 | 1 39 39 Core Hits 59 | 1 29 29 Critical Kills . | . . . Critical Parts Destroyed . | . . . Critical Strikes 1 | . 1 . Burn 1 | . 1 . Melee Attacks 17 | . 8 9 Impact 17 | . 8 9 Slashing . | . . . Piercing . | . . . Sneak Attacks . | . . . Combat Hostiles . | . . . Follow-up Attacks . | . . . Damage Inflicted 794 | 31 493 270 Guns 778 | 27 481 270 Cannons . | . . . Explosions . | . . . Melee . | . . . Ramming 16 | 4 12 . Kinetic 157 | 14 143 . Thermal 621 | 13 338 270 Explosive . | . . . Electromagnetic . | . . . Impact . | . . . Slashing . | . . . Piercing . | . . . Highest Corruption 4 | . 4 4 Average Corruption 3 | . 3 4 Corruption Purged . | . . . Corruption Blocked . | . . . Effects 28 | . 11 17 Message Errors 7 | . 3 4 Matter Fused 6 | . 4 2 Heat Flow Errors 2 | . 1 1 Energy Discharges 4 | . . 4 Data Loss (minor) 6 | . 2 4 Data Loss (major) 2 | . 1 1 Misfires 1 | . . 1 Overload Shots . | . . . Overflow Damage . | . . . Projectiles . | . . . Explosions . | . . . Melee . | . . . Knockbacks . | . . . Impact . | . . . Kinetic . | . . . Secondary . | . . . Self-Inflicted Damage . | . . . Shots . | . . . Rammed 4 | 2 2 . Targets Rammed 5 | 2 3 . Kicked . | . . . Crushed 1 | . 1 . Highest Temperature 291 | 9 291 102 Average Temperature 67 | 6 83 41 Received Heat Transfer 198 | . 186 12 Siege Activations . | . . . Robots Corrupted . | . . . Combat Hostiles . | . . . Parts Fried . | . . . Impact Corruptions . | . . . Robots Melted . | . . . Combat Hostiles . | . . . Parts Melted 3 | . 3 . Heat Transferred 1179 | 37 807 335 Parts Sabotaged . | . . . Parts Stolen . | . . . Parts Stripped . | . . . Power Chain Reactions . | . . . Alert | -11 -10 -10 ------- Run | Yrd Mat Sub Peak Influence 181 | 5 181 . Initial 3 | . 3 . Average 60 | 1 68 . Maximum Alert Level . | . . . Low Security (%) 100 | 100 100 . Level 1 . | . . . Level 2 . | . . . Level 3 . | . . . Level 4 . | . . . Level 5 . | . . . High Security . | . . . Max Security . | . . . Squads Dispatched 1 | . 1 . Investigation . | . . . Extermination . | . . . Reinforcement 1 | . 1 . Assault . | . . . Garrison . | . . . Intercept . | . . . Searches Triggered . | . . . Construction Impeded . | . . . Haulers Reinforced . | . . . Active Scanning Responses . | . . . Cargo Convoy Interrupts . | . . . Stealth | -11 -10 -10 --------- Run | Yrd Mat Sub Distress Signals 1 | . 1 . Communications Jammed . | . . . Distress Signals . | . . . Times Spotted 15 | . 11 4 Peak Tracking Total 3 | . 3 2 Tactical Retreats 1 | . 1 . Traps | -11 -10 -10 ------- Run | Yrd Mat Sub Traps Triggered 6 | . 4 2 Indirectly . | . . . Trap Hack Attempts . | . . . Triggered . | . . . Disarmed . | . . . Reprogrammed . | . . . Reused . | . . . Traps Extracted . | . . . Installed . | . . . Triggered . | . . . Machines | -11 -10 -10 ---------- Run | Yrd Mat Sub Machines Disabled 1 | . . 1 Max in Single Turn 1 | . . 1 Machines Repaired . | . . . Machines Dismantled . | . . . Machines Sabotaged . | . . . Overloaded Fab Kills . | . . . Hacking | -11 -10 -10 --------- Run | Yrd Mat Sub Machines Accessed 1 | . . 1 Terminals . | . . . Fabricators . | . . . Repair Stations . | . . . Recycling Units . | . . . Scanalyzers . | . . . Garrison Access . | . . . Total Hacks 1 | . . 1 Successful 1 | . . 1 Failed . | . . . Catastrophic . | . . . Database Lockouts . | . . . Manual . | . . . Terminals . | . . . Fabricators . | . . . Repair Stations . | . . . Recycling Units . | . . . Scanalyzers . | . . . Garrison Access . | . . . Terminal Hacks 1 | . . 1 Derelict Proto ID Bank 1 | . . 1 Fabricator Hacks . | . . . Repair Station Hacks . | . . . Recycling Unit Hacks . | . . . Scanalyzer . | . . . Garrison Access Hacks . | . . . Unauthorized Hacks . | . . . Terminals . | . . . Fabricators . | . . . Repair Stations . | . . . Recycling Units . | . . . Scanalyzers . | . . . Garrison Access . | . . . Data Cores Recovered . | . . . Used . | . . . Hacking Detections . | . . . Full Trace Events . | . . . Feedback Events . | . . . Feedback Blocked . | . . . Robot Schematics Acquired . | . . . Robots Built . | . . . Authchips . | . . . Time . | . . . Total Robot Build Rating . | . . . Part Schematics Acquired . | . . . Parts Built . | . . . Authchips . | . . . Time . | . . . Total Part Build Rating . | . . . Parts Repaired . | . . . Time . | . . . Parts Recycled . | . . . Recycled Matter . | . . . Retrieved Matter . | . . . Retrieved Components . | . . . Parts Scanalyzed . | . . . Part Schematics Acquired . | . . . Parts Damaged . | . . . Bothacking | -11 -10 -10 ------------ Run | Yrd Mat Sub Used RIF Installer . | . . . Robots Hacked . | . . . Non-combat . | . . . Combat . | . . . Robot Hacks Applied . | . . . Relay Couplers Released . | . . . Fabnet Peak Effective % . | . . . Robots Rewired . | . . . Allies Hacked . | . . . Hacks Repelled . | . . . Allies | -11 -10 -10 -------- Run | Yrd Mat Sub Total Allies . | . . . Largest Group . | . . . Highest-Rated Group . | . . . Highest-Rated Ally . | . . . Total Orders . | . . . Ally Attacks . | . . . Total Damage . | . . . Kills . | . . . Allies Corrupted . | . . . Allies Melted . | . . . Intel | -11 -10 -10 ------- Run | Yrd Mat Sub Robot Analysis Total . | . . . Derelict Logs Recovered . | . . . Drone Launches . | . . . Drone Recoveries . | . . . Exploration | -11 -10 -10 ------------- Run | Yrd Mat Sub Turns Passed 1666 | 112 799 755 Spaces Moved 861 | 59 391 411 Core 2 | 2 . . Treads 859 | 57 391 411 Legs . | . . . Wheels . | . . . Hover . | . . . Flight . | . . . Fastest Speed 50 | 50 160 160 Average Speed 159 | 156 160 160 Slowest Speed 240 | 160 240 160 Overloaded Moves . | . . . Propulsion Burnouts . | . . . Robots Hopped . | . . . Cave-ins Triggered . | . . . Exploration Rate (%) 33 | 4 65 32 Regions Visited 2 Branch Regions 1 Pre-discovered Areas . | . . . Known Exits Taken . | . . . Unknown Exits Taken 2 | 1 1 . Scrap Searched 4 | . . 4 Spaces Dug 3 | . 3 . Terrain Destroyed 3 | . 3 . Melee 3 | . 3 . Projectile . | . . . AOE . | . . . Terrain Rammed . | . . . Walls Destroyed . | . . . Machines Disabled . | . . . Actions | -11 -10 -10 --------- Run | Yrd Mat Sub Total 1024 | 72 501 451 Wait 28 | . 27 1 Move 859 | 58 390 411 Hop . | . . . Pick Up 27 | 4 21 2 Fast Attach 8 | 7 1 . Attach 2 | . 2 . Detach 1 | . 1 . Swap 17 | . 12 5 Drop 14 | . 12 2 Fire 46 | 1 24 21 Melee 17 | . 8 9 Ram . | . . . Kick . | . . . Crush 5 | 2 3 . Escape Stasis . | . . . Rewire . | . . . Trap . | . . . Miscellaneous . | . . . Route ------- -11/Scrapyard -10/Materials (discovered 4 exits: [*Mat x2] / [*Min] / *Sub) -10/Subcaves (discovered 1 exit: [*Mat]) History --------- Turn | Location | Event 10 | -11/Scrapyard | Discovered new exit (range 15) 113 | -11/Scrapyard | Entered Materials 313 | -10/Materials | Build established: Mutant 329 | -10/Materials | Discovered new exit (range 15) 679 | -10/Materials | Discovered new exit (range 13) 865 | -10/Materials | Discovered new exit (range 15) 910 | -10/Materials | Discovered new exit (range 2) 912 | -10/Materials | Entered Subcaves 1063 | -10/Subcaves | Shifting Twisted Machinery released Sub. Machine Gun 1068 | -10/Subcaves | Shifting Twisted Machinery released Riot Gun 1171 | -10/Subcaves | Discovered new exit (range 7) 1318 | -10/Subcaves | Visited 4L-MR0's lab 1334 | -10/Subcaves | Found Rainbow Chip 1523 | -10/Subcaves | Disturbed a concealed Subdweller 1640 | -10/Subcaves | Core integrity fell below 50% 1662 | -10/Subcaves | Core integrity fell below 20% 1667 | -10/Subcaves | Destroyed by J2-EBH(R) with Subdweller Machine Gun Last Messages --------------- 01506_ Found 30 Matter. 01508_ H&EUFN:A&1O%L08EMIMDEAAIWEI8O 01508_ Searching scrap... 01508_ Found Riot Gun. 01508_ Found Sub. Shrapnel Launcher. 01508_ Found 30 Matter. 01514_ Searching scrap... 01514_ Found Sub. Power Source. 01514_ Found 33 Matter. 01522_ Dropped Lgt. Armor Plating. 01522_ Lgt. Armor Plating crushed and broken. 01523_ 8V-UPE(R) angrily emerges from the Twisted Machinery. 01523_ Acquired Sub. Shrapnel Launcher. 01524_ 8V-UPE(R): "SUB#$%&!" 01527_ 8V-UPE(R) destroyed. 01528_ Acquired 10 matter. 01571_ System corrupted: Energy discharge (-83). 01599_ System corrupted: Energy discharge (-67). 01635_ Lgt. Treads destroyed. 01658_ System corrupted: Component data lost. Map ----- +----------------------------------------------------+ | | | | | ???????????????????????????????????????????????? | | ???????????????????????????????????????????????? | | ???????????????????????????????????????????????? | | ???????????????????????????????????????????????? | | ???????????????????????????????????????????????? | | ???????????????????????????????????????????????? | | ???????????????????????????????????????????????? | | ???????????????????????????????????????????????? | | ???????????????????????????????????????????????? | | ???????????????????????????????????????????????? | | ???????????????????????????????????????????????? | | ???????????????????????????????????????????????? | | ???????????????????????????????????????????????? | | ???????????????????????????????????????????????? | | ????????????????????######?????????????????????? | | ????????????????????? ##????????????????????? | | ????????????????????? #???????#????????????? | | ?????????????????????? ##??###%##???????????? | | ?????????????????????? % ### ##??????????? | | ?????????????????#??#?# ##?????????? | | ?????????????????#$ #$#< # % #?????????? | | ??????????????????? & # #?????????? | | ?????????????????????##R #?????????? | | ????????????????????## @ ???????? | | ????????????????????# ???????? | | ????????????????????## ????????? | | ?????????????????????## #### #????????? | | ?????????????????????## ##????? ????????? | | ?????????????????????# ######?? ?????????? | | ????????????????####?# ##?# ### #???????????? | | ???????????????## #?# #### #????????????? | | ???????????????# ### ## #????????????? | | ???????????????## ## ## #????????? ??? | | ????????????????## #####??? ???? | | ?????????????????## # ## ??? | | ??????????????????# #### % ??? | | ??????????????????# ##??# ???? | | ??????????????????###???# ## ????? | | ????????????????????????##### #??????????? | | ????????????????????????????# #??????????? | | ????????????????????????????# ##?????????? | | ????????????????????????????# #?????????? | | ????????????????????????????## #?????????? | | ?????????????????????????????# #?????????? | | ?????????????????????????????# ##?????????? | | ??????????????????????????##### #??????????? | | ?????????????????????????## ## #??????????? | | ????????????????#######?## ## #??????????? | +----------------------------------------------------+ Best States ------------- Heat Dissipation 35 Energy Generation 10 Energy Capacity 250 Matter Stores 300 Matter Capacity 300 Sight Range 16 Terrain Scan Density 10 Evasion (%) 40 Recoil Reduction 2 Item Schematics ----------------- None Robot Schematics ------------------ None Fabricated ------------ Nothing Alien Tech Used ----------------- None Achievements -------------- None Challenges ------------ None Game ------ Seed AutogunRecyclingScreen Manual? 0 Play Time 00:11:13 Cumulative 758.1 hours Start 2024.02.28 @ 18:15:34 End 2024.02.28 @ 18:23:51 Sessions 1 Manual Loads 0 Difficulty Rogue Special Mode None Game No. 690 Rogue 690 Adventurer 0 Explorer 0 Win Type - Total 39 Types 14/4/11/2/0/0/5/2/1 Lore% 92 Gallery% 94 Achievement% 84 Wizard Run 0 Options --------- Layout 0 ASCII 0 Keyboard 0 Movement Numpad Keybinds 0 Fullscreen 1 Font 18/Smallcaps Map View 76x50 Zoom Use 0% Tactical HUD 1 Map Filters NONE Filters NONE Steam 1 RUN: aba863a2-5a27-4f95-ae27-1d3e6e9783db